[Event "Early-Titled-Tuesday-Blitz-May-14-2024"]
[Site "Chess.com"]
[Date "2024.05.14"]
[Round "2"]
[White "CrushingKings"]
[Black "Iball95"]
[Result "1/2-1/2"]
[WhiteElo "2628"]
[BlackElo "2919"]
[TimeControl "180+1"]
[EndTime "8:21:21 PDT"]
[Termination "Game drawn by repetition"]

1. Nf3 {[%clk 0:02:10.5]} 1... d5 {[%clk 0:02:59.4]} 2. g3 {[%clk 0:02:10.8]}
2... Nf6 {[%clk 0:02:59.7]} 3. Bg2 {[%clk 0:02:11.2]} 3... c5 {[%clk 0:03:00.4]}
4. O-O {[%clk 0:02:11.8]} 4... Nc6 {[%clk 0:03:01]} 5. d4 {[%clk 0:02:12.6]}
5... e6 {[%clk 0:03:01.4]} 6. c4 {[%clk 0:02:12.8]} 6... Be7 {[%clk 0:03:02.1]}
7. cxd5 {[%clk 0:02:09.5]} 7... exd5 {[%clk 0:03:03]} 8. dxc5 {[%clk 0:02:10.2]}
8... Bxc5 {[%clk 0:03:03.5]} 9. Nc3 {[%clk 0:02:10.8]} 9... O-O {[%clk
0:03:03.2]} 10. Bg5 {[%clk 0:02:11.4]} 10... d4 {[%clk 0:03:03.6]} 11. Na4
{[%clk 0:02:11.1]} 11... Be7 {[%clk 0:03:03.1]} 12. Rc1 {[%clk 0:02:11]} 12...
h6 {[%clk 0:03:02.1]} 13. Bxf6 {[%clk 0:02:10.4]} 13... Bxf6 {[%clk 0:03:03]}
14. Nc5 {[%clk 0:02:10.2]} 14... Re8 {[%clk 0:03:01.1]} 15. Qb3 {[%clk
0:02:09.4]} 15... Qb6 {[%clk 0:02:41.7]} 16. Rfe1 {[%clk 0:01:43.3]} 16... Re7
{[%clk 0:02:39]} 17. Nd2 {[%clk 0:01:41.5]} 17... Be5 {[%clk 0:01:45.7]} 18.
Nxb7 {[%clk 0:01:11.9]} 18... Bxb7 {[%clk 0:01:32.3]} 19. Bxc6 {[%clk 0:01:11]}
19... Qa6 {[%clk 0:00:57]} 20. Bxb7 {[%clk 0:01:06]} 20... Rxb7 {[%clk
0:00:57.9]} 21. Qd5 {[%clk 0:01:06.3]} 21... Bf6 {[%clk 0:00:52.1]} 22. Ne4
{[%clk 0:00:59.2]} 22... Rab8 {[%clk 0:00:50.7]} 23. Rc6 {[%clk 0:00:50]} 23...
Rb6 {[%clk 0:00:30.7]} 24. Nxf6+ {[%clk 0:00:50]} 24... gxf6 {[%clk 0:00:31.6]}
25. Rxb6 {[%clk 0:00:46.5]} 25... Qxb6 {[%clk 0:00:31.9]} 26. b3 {[%clk
0:00:46]} 26... Re8 {[%clk 0:00:31.2]} 27. Qc4 {[%clk 0:00:41.1]} 27... Re4
{[%clk 0:00:25.7]} 28. Rd1 {[%clk 0:00:26.9]} 28... Kg7 {[%clk 0:00:24.8]} 29.
e3 {[%clk 0:00:23.4]} 29... Qa5 {[%clk 0:00:13.1]} 30. Rxd4 {[%clk 0:00:22]}
30... Rxd4 {[%clk 0:00:12.4]} 31. Qxd4 {[%clk 0:00:19.4]} 31... Qxa2 {[%clk
0:00:12.7]} 32. Qa4 {[%clk 0:00:19.8]} 32... Qb1+ {[%clk 0:00:09.9]} 33. Kg2
{[%clk 0:00:20.1]} 33... Qc2 {[%clk 0:00:09.6]} 34. Qxa7 {[%clk 0:00:13.5]}
34... Qxb3 {[%clk 0:00:09.6]} 35. Qa8 {[%clk 0:00:13.9]} 35... Qc4 {[%clk
0:00:09.2]} 36. h4 {[%clk 0:00:14.2]} 36... Qb4 {[%clk 0:00:08.7]} 37. Qd5
{[%clk 0:00:14]} 37... Qa4 {[%clk 0:00:08.6]} 38. Qd4 {[%clk 0:00:13.9]} 38...
Qc6+ {[%clk 0:00:08.5]} 39. e4 {[%clk 0:00:14.4]} 39... Qe6 {[%clk 0:00:08.4]}
40. Qd5 {[%clk 0:00:14.5]} 40... Qe8 {[%clk 0:00:09]} 41. Kf3 {[%clk 0:00:13.2]}
41... Qa4 {[%clk 0:00:09.4]} 42. Kf4 {[%clk 0:00:12.2]} 42... Qa7 {[%clk
0:00:09]} 43. Kf3 {[%clk 0:00:10.2]} 43... Qa3+ {[%clk 0:00:08.9]} 44. Kg2
{[%clk 0:00:09.6]} 44... Qb2 {[%clk 0:00:08.9]} 45. Qf5 {[%clk 0:00:09.5]} 45...
Qd4 {[%clk 0:00:08.7]} 46. Qg4+ {[%clk 0:00:09.8]} 46... Kf8 {[%clk 0:00:08.7]}
47. Qf4 {[%clk 0:00:09.9]} 47... Kg7 {[%clk 0:00:08.8]} 48. Qg4+ {[%clk
0:00:10.4]} 48... Kf8 {[%clk 0:00:08.9]} 49. Qf5 {[%clk 0:00:09.8]} 49... Kg7
{[%clk 0:00:08.9]} 50. Qd5 {[%clk 0:00:10.5]} 50... Qc3 {[%clk 0:00:08.5]} 51.
g4 {[%clk 0:00:09.8]} 51... Qb2 {[%clk 0:00:07.7]} 52. Qf5 {[%clk 0:00:10]}
52... Qd4 {[%clk 0:00:07.2]} 53. g5 {[%clk 0:00:08.2]} 53... hxg5 {[%clk
0:00:07.1]} 54. hxg5 {[%clk 0:00:08.9]} 54... fxg5 {[%clk 0:00:07.5]} 55. Qxg5+
{[%clk 0:00:09.5]} 55... Kf8 {[%clk 0:00:08.1]} 56. Qh6+ {[%clk 0:00:09.6]}
56... Kg8 {[%clk 0:00:07.6]} 57. Qf4 {[%clk 0:00:07.9]} 57... Kf8 {[%clk
0:00:06.8]} 58. Qb8+ {[%clk 0:00:07.7]} 58... Kg7 {[%clk 0:00:07.5]} 59. Qg3+
{[%clk 0:00:08.3]} 59... Kf8 {[%clk 0:00:08.2]} 60. Qg4 {[%clk 0:00:07.2]} 60...
Qe5 {[%clk 0:00:07.8]} 61. Kf3 {[%clk 0:00:07.4]} 61... Qf6+ {[%clk 0:00:07.7]}
62. Qf4 {[%clk 0:00:07.5]} 62... Qc3+ {[%clk 0:00:08.3]} 63. Kg4 {[%clk
0:00:07.7]} 63... Qg7+ {[%clk 0:00:08.6]} 64. Kf3 {[%clk 0:00:06.6]} 64... Qc3+
{[%clk 0:00:08.7]} 65. Qe3 {[%clk 0:00:07.2]} 65... Qf6+ {[%clk 0:00:08.8]} 66.
Ke2 {[%clk 0:00:07.9]} 66... Qb2+ {[%clk 0:00:08.9]} 67. Kd3 {[%clk 0:00:08.4]}
67... Qb3+ {[%clk 0:00:09.2]} 68. Kd4 {[%clk 0:00:08.3]} 68... Qb6+ {[%clk
0:00:09.3]} 69. Kd3 {[%clk 0:00:08.9]} 69... Qb3+ {[%clk 0:00:09.5]} 70. Ke2
{[%clk 0:00:09.3]} 70... Qa2+ {[%clk 0:00:09.6]} 71. Kf1 {[%clk 0:00:09.7]}
71... Qa1+ {[%clk 0:00:09.4]} 72. Kg2 {[%clk 0:00:09.5]} 72... Qg7+ {[%clk
0:00:10.1]} 73. Qg3 {[%clk 0:00:10.1]} 73... Qd4 {[%clk 0:00:10.5]} 74. f3
{[%clk 0:00:09.3]} 74... Qd2+ {[%clk 0:00:10.4]} 75. Kh3 {[%clk 0:00:08.2]}
75... Qh6+ {[%clk 0:00:11]} 76. Qh4 {[%clk 0:00:08.7]} 76... Qe6+ {[%clk
0:00:11.6]} 77. Qg4 {[%clk 0:00:09.2]} 77... Qh6+ {[%clk 0:00:12.2]} 78. Kg3
{[%clk 0:00:09.6]} 78... Qd6+ {[%clk 0:00:12.8]} 79. Qf4 {[%clk 0:00:10.1]}
79... Qg6+ {[%clk 0:00:12.9]} 80. Kf2 {[%clk 0:00:10.7]} 80... Qb6+ {[%clk
0:00:13.2]} 81. Qe3 {[%clk 0:00:11.3]} 81... Qb2+ {[%clk 0:00:13.3]} 82. Kg3
{[%clk 0:00:11.8]} 82... Qg7+ {[%clk 0:00:13.3]} 83. Kh2 {[%clk 0:00:12.4]}
83... Qh8+ {[%clk 0:00:13.6]} 84. Kg2 {[%clk 0:00:12.7]} 84... Qg7+ {[%clk
0:00:14.2]} 85. Kf1 {[%clk 0:00:13.2]} 85... Qa1+ {[%clk 0:00:14.5]} 86. Qe1
{[%clk 0:00:13.9]} 86... Qa3 {[%clk 0:00:13.9]} 87. Kf2 {[%clk 0:00:14.3]} 87...
Qb2+ {[%clk 0:00:14.4]} 88. Qe2 {[%clk 0:00:13.8]} 88... Qd4+ {[%clk 0:00:14.5]}
89. Kf1 {[%clk 0:00:12.6]} 89... Qa1+ {[%clk 0:00:14.5]} 90. Qe1 {[%clk
0:00:12.7]} 90... Qb2 {[%clk 0:00:13.3]} 91. Qa5 {[%clk 0:00:11.3]} 91... Qb1+
{[%clk 0:00:12.3]} 92. Ke2 {[%clk 0:00:11.2]} 92... Qb2+ {[%clk 0:00:12.3]} 93.
Qd2 {[%clk 0:00:11.9]} 93... Qb5+ {[%clk 0:00:12.1]} 94. Qd3 {[%clk 0:00:12.7]}
94... Qb2+ {[%clk 0:00:12.3]} 95. Ke3 {[%clk 0:00:13.2]} 95... Qb6+ {[%clk
0:00:12.6]} 96. Qd4 {[%clk 0:00:13.7]} 96... Qh6+ {[%clk 0:00:12.8]} 97. Ke2
{[%clk 0:00:13]} 97... Qh2+ {[%clk 0:00:12.4]} 98. Qf2 {[%clk 0:00:12.5]} 98...
Qd6 {[%clk 0:00:12]} 99. f4 {[%clk 0:00:12.7]} 99... Qa6+ {[%clk 0:00:11.4]}
100. Kf3 {[%clk 0:00:13.1]} 100... Qd3+ {[%clk 0:00:11.4]} 101. Qe3 {[%clk
0:00:13.6]} 101... Qf1+ {[%clk 0:00:11.1]} 102. Kg3 {[%clk 0:00:14]} 102... Qa6
{[%clk 0:00:09.6]} 103. Qc5+ {[%clk 0:00:14.4]} 103... Kg8 {[%clk 0:00:08.8]}
104. Kg4 {[%clk 0:00:14.6]} 104... Qe6+ {[%clk 0:00:07.8]} 105. Qf5 {[%clk
0:00:14.9]} 105... Qa2 {[%clk 0:00:08.5]} 106. Kg5 {[%clk 0:00:14.6]} 106... Kf8
{[%clk 0:00:06.6]} 107. Qc8+ {[%clk 0:00:13.9]} 107... Kg7 {[%clk 0:00:07.3]}
108. e5 {[%clk 0:00:11.1]} 108... Qg2+ {[%clk 0:00:06.3]} 109. Qg4 {[%clk
0:00:11.7]} 109... Qc2 {[%clk 0:00:05.9]} 110. Kh4+ {[%clk 0:00:11.6]} 110...
Kf8 {[%clk 0:00:05.6]} 111. Qg5 {[%clk 0:00:11.6]} 111... Qh2+ {[%clk
0:00:05.7]} 112. Kg4 {[%clk 0:00:11.7]} 112... Qg2+ {[%clk 0:00:06.4]} 113. Kh4
{[%clk 0:00:07.6]} 113... Qh2+ {[%clk 0:00:06.7]} 114. Kg4 {[%clk 0:00:07.8]}
114... Qg2+ {[%clk 0:00:07.3]} 115. Kh5 {[%clk 0:00:07]} 115... Qh3+ {[%clk
0:00:06.9]} 116. Qh4 {[%clk 0:00:06.3]} 116... Qf5+ {[%clk 0:00:06.8]} 117. Qg5
{[%clk 0:00:07]} 117... Qh3+ {[%clk 0:00:07.3]} 118. Qh4 {[%clk 0:00:06.8]}
118... Qf5+ {[%clk 0:00:08]} 119. Qg5 {[%clk 0:00:07.5]} 119... Qh3+ {[%clk
0:00:08.5]} 1/2-1/2

[Event "Early-Titled-Tuesday-Blitz-May-14-2024"]
[Site "Chess.com"]
[Date "2024.05.14"]
[Round "3"]
[White "Sanyura"]
[Black "DACF2905"]
[Result "1-0"]
[WhiteElo "2646"]
[BlackElo "2441"]
[TimeControl "180+1"]
[EndTime "8:24:40 PDT"]
[Termination "Sanyura won by resignation"]

1. Nf3 {[%clk 0:02:13.8]} 1... Nf6 {[%clk 0:02:58.4]} 2. g3 {[%clk 0:02:14]}
2... d5 {[%clk 0:02:57.6]} 3. c4 {[%clk 0:02:14.4]} 3... e6 {[%clk 0:02:56.7]}
4. Bg2 {[%clk 0:02:14.8]} 4... Be7 {[%clk 0:02:56]} 5. O-O {[%clk 0:02:15.7]}
5... O-O {[%clk 0:02:55]} 6. b3 {[%clk 0:02:15]} 6... c6 {[%clk 0:02:54.8]} 7.
Bb2 {[%clk 0:02:15]} 7... Re8 {[%clk 0:02:54.3]} 8. d4 {[%clk 0:02:14]} 8...
Nbd7 {[%clk 0:02:54.4]} 9. Nc3 {[%clk 0:02:14.6]} 9... Nf8 {[%clk 0:02:54.3]}
10. Ne5 {[%clk 0:02:13.8]} 10... Bd6 {[%clk 0:02:53.5]} 11. e4 {[%clk
0:02:11.3]} 11... dxe4 {[%clk 0:02:51.7]} 12. Nxe4 {[%clk 0:02:11.4]} 12... Nxe4
{[%clk 0:02:51.7]} 13. Bxe4 {[%clk 0:02:12.1]} 13... Ng6 {[%clk 0:02:51.6]} 14.
Nxg6 {[%clk 0:02:11.1]} 14... hxg6 {[%clk 0:02:51.5]} 15. h4 {[%clk 0:02:11.1]}
15... Qc7 {[%clk 0:02:46.4]} 16. Kg2 {[%clk 0:02:10]} 16... b6 {[%clk
0:02:45.1]} 17. h5 {[%clk 0:02:10.2]} 17... gxh5 {[%clk 0:02:42]} 18. Qxh5
{[%clk 0:02:11.1]} 18... g6 {[%clk 0:02:39.1]} 19. Bxg6 {[%clk 0:02:09.6]} 19...
fxg6 {[%clk 0:02:39.4]} 20. Qxg6+ {[%clk 0:02:10.5]} 20... Kf8 {[%clk
0:02:39.2]} 21. Rh1 {[%clk 0:02:10.8]} 21... Qf7 {[%clk 0:02:39.3]} 22. Rh8+
{[%clk 0:02:09.9]} 22... Ke7 {[%clk 0:02:38.9]} 23. Rh7 {[%clk 0:02:10.3]} 23...
Rf8 {[%clk 0:02:38.8]} 24. Rxf7+ {[%clk 0:02:10.4]} 24... Rxf7 {[%clk
0:02:39.7]} 25. Re1 {[%clk 0:02:08.9]} 25... c5 {[%clk 0:02:39.1]} 26. d5 {[%clk
0:02:07.4]} 26... Rf6 {[%clk 0:02:33.6]} 27. Qxf6+ {[%clk 0:02:06.4]} 1-0

[Event "Early-Titled-Tuesday-Blitz-May-14-2024"]
[Site "Chess.com"]
[Date "2024.05.14"]
[Round "3"]
[White "Chess4always"]
[Black "youngdinousaur"]
[Result "0-1"]
[WhiteElo "2027"]
[BlackElo "2377"]
[TimeControl "180+1"]
[EndTime "8:24:47 PDT"]
[Termination "youngdinousaur won by resignation"]

1. d4 {[%clk 0:03:00.9]} 1... Nf6 {[%clk 0:02:59.6]} 2. Bg5 {[%clk 0:03:00.5]}
2... Ne4 {[%clk 0:02:59]} 3. Bf4 {[%clk 0:03:00.9]} 3... g5 {[%clk 0:02:59.4]}
4. Be5 {[%clk 0:03:00.5]} 4... Rg8 {[%clk 0:02:58.6]} 5. f3 {[%clk 0:02:59.3]}
5... d6 {[%clk 0:02:59.2]} 6. Bg3 {[%clk 0:02:56.2]} 6... Nxg3 {[%clk
0:02:50.8]} 7. hxg3 {[%clk 0:02:57.1]} 7... h6 {[%clk 0:02:51.3]} 8. g4 {[%clk
0:02:56.5]} 8... Bg7 {[%clk 0:02:50.8]} 9. e4 {[%clk 0:02:56.7]} 9... c5 {[%clk
0:02:48.4]} 10. c3 {[%clk 0:02:56.8]} 10... cxd4 {[%clk 0:02:47.8]} 11. cxd4
{[%clk 0:02:57]} 11... Qb6 {[%clk 0:02:48.7]} 12. Nc3 {[%clk 0:02:47.9]} 12...
Bxd4 {[%clk 0:02:40.5]} 13. Nge2 {[%clk 0:02:43.6]} 13... Bf2+ {[%clk
0:02:32.4]} 14. Kd2 {[%clk 0:02:43.1]} 14... Qxb2+ {[%clk 0:02:29]} 15. Kd3
{[%clk 0:02:36.3]} 15... Nc6 {[%clk 0:02:27]} 0-1

[Event "Early-Titled-Tuesday-Blitz-May-14-2024"]
[Site "Chess.com"]
[Date "2024.05.14"]
[Round "3"]
[White "DominguezOnYoutube"]
[Black "BillCoe"]
[Result "1-0"]
[WhiteElo "3002"]
[BlackElo "2180"]
[TimeControl "180+1"]
[EndTime "8:24:56 PDT"]
[Termination "DominguezOnYoutube won by resignation"]

1. e4 {[%clk 0:03:00.9]} 1... c5 {[%clk 0:03:00.1]} 2. Nf3 {[%clk 0:03:01]} 2...
e6 {[%clk 0:03:00.6]} 3. d4 {[%clk 0:03:01.1]} 3... cxd4 {[%clk 0:03:01.5]} 4.
Nxd4 {[%clk 0:03:01.5]} 4... a6 {[%clk 0:03:02.2]} 5. a3 {[%clk 0:03:00.2]} 5...
Qc7 {[%clk 0:03:01.9]} 6. Nc3 {[%clk 0:02:57]} 6... Nf6 {[%clk 0:03:01.9]} 7. f4
{[%clk 0:02:57.1]} 7... d6 {[%clk 0:02:59.3]} 8. Be3 {[%clk 0:02:54.8]} 8... Be7
{[%clk 0:02:58.7]} 9. g4 {[%clk 0:02:54.5]} 9... Nc6 {[%clk 0:02:57.5]} 10. g5
{[%clk 0:02:54]} 10... Nd7 {[%clk 0:02:52.4]} 11. h4 {[%clk 0:02:52.4]} 11... b5
{[%clk 0:02:43.6]} 12. Nxc6 {[%clk 0:02:50.6]} 12... Qxc6 {[%clk 0:02:43.3]} 13.
Qd4 {[%clk 0:02:51.3]} 13... O-O {[%clk 0:02:30.2]} 14. O-O-O {[%clk 0:02:50.5]}
14... Bb7 {[%clk 0:02:15.8]} 15. h5 {[%clk 0:02:50.2]} 15... Qc5 {[%clk
0:02:10.1]} 16. Qxc5 {[%clk 0:02:30.7]} 16... Nxc5 {[%clk 0:02:11]} 17. Bxc5
{[%clk 0:02:30.8]} 17... dxc5 {[%clk 0:02:02.2]} 18. Rd7 {[%clk 0:02:30.2]}
18... b4 {[%clk 0:01:57.1]} 19. Rxb7 {[%clk 0:02:21.7]} 19... bxc3 {[%clk
0:01:53.4]} 20. Rxe7 {[%clk 0:02:20.7]} 20... cxb2+ {[%clk 0:01:52.5]} 21. Kxb2
{[%clk 0:02:19.7]} 1-0

[Event "Early-Titled-Tuesday-Blitz-May-14-2024"]
[Site "Chess.com"]
[Date "2024.05.14"]
[Round "3"]
[White "Chessdude1987"]
[Black "campochess"]
[Result "1-0"]
[WhiteElo "2379"]
[BlackElo "2098"]
[TimeControl "180+1"]
[EndTime "8:25:31 PDT"]
[Termination "Chessdude1987 won by checkmate"]

1. e4 {[%clk 0:03:00.9]} 1... c5 {[%clk 0:02:59.9]} 2. Nf3 {[%clk 0:03:01]} 2...
Nc6 {[%clk 0:03:00]} 3. Bb5 {[%clk 0:03:00.9]} 3... e6 {[%clk 0:02:58.7]} 4. O-O
{[%clk 0:02:59.5]} 4... Nge7 {[%clk 0:02:58.7]} 5. Re1 {[%clk 0:02:59.1]} 5...
a6 {[%clk 0:02:58.8]} 6. Bf1 {[%clk 0:02:59.2]} 6... Ng6 {[%clk 0:02:58.4]} 7.
c3 {[%clk 0:02:54.9]} 7... d6 {[%clk 0:02:58.5]} 8. d4 {[%clk 0:02:54.5]} 8...
cxd4 {[%clk 0:02:56.3]} 9. cxd4 {[%clk 0:02:54.6]} 9... e5 {[%clk 0:02:56]} 10.
Nc3 {[%clk 0:02:51]} 10... Bg4 {[%clk 0:02:53.4]} 11. dxe5 {[%clk 0:02:31.2]}
11... Bxf3 {[%clk 0:02:50.1]} 12. Qxf3 {[%clk 0:02:23.3]} 12... dxe5 {[%clk
0:02:50.2]} 13. Bc4 {[%clk 0:02:20.8]} 13... f6 {[%clk 0:02:24]} 14. Be3 {[%clk
0:02:14.3]} 14... Qa5 {[%clk 0:02:21.2]} 15. Qf5 {[%clk 0:02:10.4]} 15... Nd8
{[%clk 0:02:07.3]} 16. Rad1 {[%clk 0:02:07.4]} 16... Qc7 {[%clk 0:02:05.6]} 17.
Nd5 {[%clk 0:01:52.4]} 17... Qxc4 {[%clk 0:01:44.7]} 18. Nxf6+ {[%clk
0:01:51.7]} 18... gxf6 {[%clk 0:01:40.5]} 19. Qd7# {[%clk 0:01:51.3]} 1-0

[Event "Early-Titled-Tuesday-Blitz-May-14-2024"]
[Site "Chess.com"]
[Date "2024.05.14"]
[Round "3"]
[White "GMthekingindian"]
[Black "laurenzchess"]
[Result "0-1"]
[WhiteElo "2297"]
[BlackElo "2492"]
[TimeControl "180+1"]
[EndTime "8:25:32 PDT"]
[Termination "laurenzchess won by resignation"]

1. d4 {[%clk 0:03:00.9]} 1... Nf6 {[%clk 0:02:56.1]} 2. Nf3 {[%clk 0:03:01.2]}
2... g6 {[%clk 0:02:50.6]} 3. g3 {[%clk 0:03:00.5]} 3... Bg7 {[%clk 0:02:49.8]}
4. Bg2 {[%clk 0:03:01.1]} 4... O-O {[%clk 0:02:50.2]} 5. O-O {[%clk 0:03:01.7]}
5... d6 {[%clk 0:02:50.8]} 6. b3 {[%clk 0:03:01.6]} 6... a5 {[%clk 0:02:48.6]}
7. c4 {[%clk 0:03:01]} 7... a4 {[%clk 0:02:46.2]} 8. Bb2 {[%clk 0:02:59.3]} 8...
axb3 {[%clk 0:02:43.6]} 9. axb3 {[%clk 0:03:00.2]} 9... Rxa1 {[%clk 0:02:42.6]}
10. Bxa1 {[%clk 0:03:01.1]} 10... c6 {[%clk 0:02:39.9]} 11. Re1 {[%clk
0:02:52.7]} 11... Bf5 {[%clk 0:02:35.4]} 12. Nbd2 {[%clk 0:02:50.3]} 12... d5
{[%clk 0:02:29.3]} 13. Ne5 {[%clk 0:02:37.1]} 13... Nbd7 {[%clk 0:02:28.6]} 14.
Ndf3 {[%clk 0:02:36.6]} 14... Qa5 {[%clk 0:02:22]} 15. cxd5 {[%clk 0:02:27.2]}
15... cxd5 {[%clk 0:01:58.3]} 16. Nxd7 {[%clk 0:02:10.4]} 16... Bxd7 {[%clk
0:01:56.1]} 17. Ne5 {[%clk 0:02:10.6]} 17... Bb5 {[%clk 0:01:50.1]} 18. Qc2
{[%clk 0:01:53.5]} 18... Qxe1+ {[%clk 0:01:46.9]} 0-1

[Event "Early-Titled-Tuesday-Blitz-May-14-2024"]
[Site "Chess.com"]
[Date "2024.05.14"]
[Round "3"]
[White "Massakru"]
[Black "Pumpkin_in_moonlight"]
[Result "1-0"]
[WhiteElo "2406"]
[BlackElo "2197"]
[TimeControl "180+1"]
[EndTime "8:25:39 PDT"]
[Termination "Massakru won by resignation"]

1. e4 {[%clk 0:03:00.9]} 1... c5 {[%clk 0:02:58.8]} 2. c3 {[%clk 0:02:59.7]}
2... d5 {[%clk 0:02:40.4]} 3. exd5 {[%clk 0:03:00.6]} 3... Qxd5 {[%clk
0:02:40.5]} 4. Na3 {[%clk 0:03:00.3]} 4... e5 {[%clk 0:02:34.3]} 5. Nf3 {[%clk
0:02:50.7]} 5... Nc6 {[%clk 0:02:33.6]} 6. Bc4 {[%clk 0:02:49.6]} 6... Qd8
{[%clk 0:02:11.7]} 7. O-O {[%clk 0:02:46.1]} 7... Bd6 {[%clk 0:01:55.9]} 8. d4
{[%clk 0:02:38.6]} 8... cxd4 {[%clk 0:01:40.5]} 9. cxd4 {[%clk 0:02:38.4]} 9...
exd4 {[%clk 0:01:32.6]} 10. Re1+ {[%clk 0:02:31]} 10... Nge7 {[%clk 0:01:32]}
11. Ng5 {[%clk 0:02:27.5]} 11... O-O {[%clk 0:01:25.5]} 12. Qh5 {[%clk
0:02:24.9]} 12... h6 {[%clk 0:00:53.5]} 13. Nxf7 {[%clk 0:02:24.5]} 1-0

[Event "Early-Titled-Tuesday-Blitz-May-14-2024"]
[Site "Chess.com"]
[Date "2024.05.14"]
[Round "3"]
[White "the_chess_child"]
[Black "Lucky_Puncher"]
[Result "1-0"]
[WhiteElo "2862"]
[BlackElo "2560"]
[TimeControl "180+1"]
[EndTime "8:25:40 PDT"]
[Termination "the_chess_child won by resignation"]

1. e4 {[%clk 0:03:00]} 1... c5 {[%clk 0:02:30.1]} 2. Nf3 {[%clk 0:02:59.5]} 2...
d6 {[%clk 0:02:30.7]} 3. d3 {[%clk 0:02:58.9]} 3... Nf6 {[%clk 0:02:30.1]} 4. g3
{[%clk 0:02:57.2]} 4... g6 {[%clk 0:02:29.3]} 5. Bg2 {[%clk 0:02:57.2]} 5... Bg7
{[%clk 0:02:30]} 6. O-O {[%clk 0:02:57.3]} 6... O-O {[%clk 0:02:30.3]} 7. Re1
{[%clk 0:02:57.9]} 7... Nc6 {[%clk 0:02:30.2]} 8. h3 {[%clk 0:02:53.7]} 8... b5
{[%clk 0:02:21.3]} 9. e5 {[%clk 0:02:46.2]} 9... Ne8 {[%clk 0:02:18.6]} 10. Ng5
{[%clk 0:02:26.2]} 10... d5 {[%clk 0:02:03.7]} 11. e6 {[%clk 0:02:20]} 11... f6
{[%clk 0:02:02.1]} 12. Nf7 {[%clk 0:02:19.8]} 12... Rxf7 {[%clk 0:01:56.8]} 13.
exf7+ {[%clk 0:02:20.7]} 13... Kxf7 {[%clk 0:01:57.7]} 14. c4 {[%clk 0:02:16.6]}
14... Nc7 {[%clk 0:01:52]} 15. Nc3 {[%clk 0:02:07.2]} 15... Be6 {[%clk 0:01:33]}
16. Rxe6 {[%clk 0:02:04.5]} 1-0

[Event "Early-Titled-Tuesday-Blitz-May-14-2024"]
[Site "Chess.com"]
[Date "2024.05.14"]
[Round "3"]
[White "JERO-8914"]
[Black "kritipatel"]
[Result "1-0"]
[WhiteElo "2404"]
[BlackElo "2178"]
[TimeControl "180+1"]
[EndTime "8:26:10 PDT"]
[Termination "JERO-8914 won by resignation"]

1. d4 {[%clk 0:02:58.8]} 1... d5 {[%clk 0:02:58.1]} 2. Nf3 {[%clk 0:02:57.4]}
2... Nf6 {[%clk 0:02:58.4]} 3. c4 {[%clk 0:02:54.1]} 3... e6 {[%clk 0:02:58.3]}
4. Nc3 {[%clk 0:02:53.5]} 4... Be7 {[%clk 0:02:58.1]} 5. Bg5 {[%clk 0:02:51.7]}
5... O-O {[%clk 0:02:58.2]} 6. cxd5 {[%clk 0:02:50.5]} 6... exd5 {[%clk
0:02:58]} 7. e3 {[%clk 0:02:50.1]} 7... c6 {[%clk 0:02:56]} 8. Bd3 {[%clk
0:02:50]} 8... Nbd7 {[%clk 0:02:56.7]} 9. Qc2 {[%clk 0:02:49.3]} 9... Re8 {[%clk
0:02:57.6]} 10. O-O {[%clk 0:02:49]} 10... Nf8 {[%clk 0:02:58.3]} 11. Ne5 {[%clk
0:02:49]} 11... g6 {[%clk 0:02:57.8]} 12. f4 {[%clk 0:02:48.4]} 12... Ne6 {[%clk
0:02:57.8]} 13. Bh4 {[%clk 0:02:47.2]} 13... Nd7 {[%clk 0:02:55.4]} 14. Bxe7
{[%clk 0:02:44.3]} 14... Qxe7 {[%clk 0:02:54.5]} 15. f5 {[%clk 0:02:44.8]} 15...
Ng5 {[%clk 0:02:49.1]} 16. fxg6 {[%clk 0:02:44.4]} 16... fxg6 {[%clk 0:02:41.8]}
17. Bxg6 {[%clk 0:02:42.4]} 17... hxg6 {[%clk 0:02:37.2]} 18. Qxg6+ {[%clk
0:02:42.1]} 18... Kh8 {[%clk 0:02:16.3]} 19. Rf7 {[%clk 0:02:33.6]} 19... Nxf7
{[%clk 0:00:53.7]} 20. Nxf7+ {[%clk 0:02:31.6]} 20... Qxf7 {[%clk 0:00:53.6]}
21. Qxf7 {[%clk 0:02:32.5]} 21... Rxe3 {[%clk 0:00:48.7]} 22. Qh5+ {[%clk
0:02:25]} 22... Kg7 {[%clk 0:00:47.8]} 23. Qg5+ {[%clk 0:02:25.7]} 1-0

[Event "Early-Titled-Tuesday-Blitz-May-14-2024"]
[Site "Chess.com"]
[Date "2024.05.14"]
[Round "3"]
[White "Yan_Dyomin2010"]
[Black "Yerlan-Ra"]
[Result "1-0"]
[WhiteElo "2675"]
[BlackElo "2476"]
[TimeControl "180+1"]
[EndTime "8:26:20 PDT"]
[Termination "Yan_Dyomin2010 won by resignation"]

1. e4 {[%clk 0:03:00.9]} 1... e5 {[%clk 0:01:42.2]} 2. d4 {[%clk 0:02:58.9]}
2... exd4 {[%clk 0:01:42.3]} 3. Qxd4 {[%clk 0:02:59.6]} 3... Nc6 {[%clk
0:01:42.8]} 4. Qd3 {[%clk 0:03:00.2]} 4... Nf6 {[%clk 0:01:43.2]} 5. Nc3 {[%clk
0:02:59.9]} 5... Bb4 {[%clk 0:01:43.4]} 6. Bd2 {[%clk 0:02:59.3]} 6... O-O
{[%clk 0:01:44]} 7. O-O-O {[%clk 0:02:59.7]} 7... Re8 {[%clk 0:01:42.3]} 8. Nge2
{[%clk 0:03:00.3]} 8... d6 {[%clk 0:01:41.2]} 9. Bg5 {[%clk 0:03:00.9]} 9... h6
{[%clk 0:01:41.2]} 10. Bxf6 {[%clk 0:03:00.5]} 10... Qxf6 {[%clk 0:01:42.1]} 11.
Nd5 {[%clk 0:03:01.2]} 11... Qe5 {[%clk 0:01:41]} 12. Nxc7 {[%clk 0:02:57.7]}
12... Qa5 {[%clk 0:01:33.7]} 13. Nxe8 {[%clk 0:02:55.1]} 13... Qxa2 {[%clk
0:01:33.9]} 14. c3 {[%clk 0:02:54]} 14... Be6 {[%clk 0:01:26.3]} 15. Qb1 {[%clk
0:02:53.4]} 15... Qa4 {[%clk 0:01:24.1]} 16. Nxd6 {[%clk 0:02:47.8]} 16... Rd8
{[%clk 0:01:22.7]} 17. cxb4 {[%clk 0:02:44.5]} 17... Nxb4 {[%clk 0:01:21.7]} 18.
Nc3 {[%clk 0:02:45.1]} 18... Qc6 {[%clk 0:01:03.5]} 19. Nf5 {[%clk 0:02:35.2]}
19... Na2+ {[%clk 0:00:53.5]} 20. Qxa2 {[%clk 0:02:13]} 20... Rxd1+ {[%clk
0:00:50.6]} 21. Kxd1 {[%clk 0:02:13.9]} 21... Qd7+ {[%clk 0:00:50.8]} 22. Nd5
{[%clk 0:02:13.2]} 1-0